fUST/lending_fUST_20240601
["ID","MTS","AMOUNT","RATE_DAILY","PERIOD"]
[328353085,1717219832183,-7249.54641603,0.00014999,2]
[328353087,1717219832192,-24900.0,0.00015208,2]
[328353089,1717219832202,-50228.80919675,0.00015616,2]
[328353091,1717219832211,-1362.06836296,0.00015617,2]
[328353093,1717219832220,-1069.436061,0.00015717,2]
[328353095,1717219832229,-325.95107979,0.00017204,2]
[328353097,1717219832239,-275.21537347,0.00017205,2]
[328353099,1717219832249,-155.0,0.00017206,2]
[328353101,1717219832258,-1362.0683629,0.00017207,2]
[328353103,1717219832267,-1340.3055722,0.000179,2]
[328353105,1717219832276,-897.38565272,0.00018,2]
[328353107,1717219832286,-1362.0683629,0.00018798,2]
[328353109,1717219832296,-1340.30557216,0.00018879,2]
[328353111,1717219832305,-332.00887731,0.00019178,2]
[328353113,1717219832314,-166.461261,0.00019178,2]
[328353115,1717219832323,-1340.30557216,0.00019858,2]
[328353117,1717219832332,-155.32043096,0.0002,2]
[328353119,1717219832345,-1353.20730432,0.00020386,2]
[328353121,1717219832354,-280.81913879,0.00020387,2]
[328353123,1717219832363,-1362.0683629,0.00020388,2]
[328353125,1717219832372,-445.85,0.00020827,3]
[328353127,1717219832382,-222.92,0.00020827,3]
[328353129,1717219832391,-668.81,0.00020827,3]
[328353131,1717219832402,-1340.30557216,0.00020837,2]
[328353133,1717219832413,-2070.16185734,0.00021,2]
[328353135,1717219832422,-306.0,0.00021507,2]
[328353137,1717219832431,-150.44771377,0.00021541,2]
[328353139,1717219832440,-204.942387,0.00021644,2]
[328353141,1717219832450,-204.942387,0.00021644,2]
[328353143,1717219832459,-156.0275613,0.00021644,2]
[328353145,1717219832468,-306.2943761,0.00021644,2]
[328353147,1717219832479,-292.0141423,0.00021644,2]
[328353149,1717219832488,-292.0141423,0.00021644,2]
[328353151,1717219832497,-204.942387,0.00021644,2]
[328353153,1717219832507,-153.0,0.00021644,2]
[328353155,1717219832516,-204.942387,0.00021644,2]
[328353157,1717219832525,-292.0141423,0.00021644,2]
[328353159,1717219832536,-204.942387,0.00021644,2]
[328353161,1717219832545,-292.0141423,0.00021644,2]
[328353163,1717219832555,-153.0,0.00021644,2]
[328353165,1717219832564,-265.3387923,0.00021644,2]
[328353167,1717219832574,-204.942387,0.00021644,2]
[328353169,1717219832583,-85.7169907,0.00021694,2]
[328353171,1717219832596,-430.14930175,0.00021806,2]
[328353173,1717219832605,-2000.0,0.00021815,2]
[328353175,1717219832614,-1340.30557216,0.00021816,2]
[328353177,1717219832623,-282.0,0.000219,2]
[328353179,1717219832633,-3357.01562748,0.00021904,5]
[328353181,1717219832642,-759.01456927,0.00021904,7]
[328353183,1717219832651,-187.019874,0.00021905,2]
[328353185,1717219832662,-187.019874,0.00021905,2]
[328353188,1717219832671,-187.019874,0.00021905,2]
[328353190,1717219832682,-187.019874,0.00021905,2]
[328353191,1717219832691,-187.019874,0.00021905,2]
[328353194,1717219832701,-187.019874,0.00021905,2]
[328353196,1717219832710,-187.019874,0.00021905,2]
[328353197,1717219832720,-187.019874,0.00021905,2]
[328353199,1717219832729,-151.0,0.00021905,2]
[328353202,1717219832739,-151.0,0.00021905,2]
[328353204,1717219832748,-151.0,0.00021905,2]
[328353206,1717219832758,-151.0,0.00021905,2]
[328353208,1717219832768,-155.464486,0.00021905,2]
[328353210,1717219832777,-151.0,0.00021905,2]
[328353211,1717219832786,-151.0,0.00021905,2]
[328353213,1717219832795,-280.53344054,0.00021905,2]
[328353215,1717219832805,-151.0,0.00021905,2]
[328353218,1717219832815,-151.0,0.00021905,2]
[328353219,1717219832824,-151.0,0.00021905,2]
[328353221,1717219832833,-151.0,0.00021905,2]
[328353223,1717219832848,-151.0,0.00021906,2]
[328353225,1717219832857,-151.0,0.00021906,2]
[328353236,1717219832939,-151.0,0.00021906,2]
[328353239,1717219832964,-151.0,0.00021906,2]
[328353241,1717219832973,-151.0,0.00021906,2]
[328353243,1717219832982,-151.0,0.00021906,2]
[328353245,1717219832991,-630.00935,0.00021906,2]
[328353247,1717219833001,-630.00935,0.00021906,2]
[328353249,1717219833011,-630.00935,0.00021906,2]
[328353251,1717219833020,-630.00935,0.00021906,2]
[328353253,1717219833030,-630.00935,0.00021906,2]
[328353255,1717219833039,-630.00935,0.00021906,2]
[328353257,1717219833048,-249.752271,0.00021906,2]
[328353259,1717219833058,-151.0,0.00021906,2]
[328353261,1717219833067,-196.034005,0.00021906,2]
[328353263,1717219833077,-308.003169,0.00021907,2]
[328353265,1717219833088,-308.003169,0.00021907,2]
[328353267,1717219833098,-308.003169,0.00021907,2]
[328353269,1717219833107,-308.003169,0.00021907,2]
[328353271,1717219833117,-308.003169,0.00021907,2]
[328353273,1717219833126,-308.003169,0.00021907,2]
[328353275,1717219833135,-151.0,0.00021907,2]
[328353277,1717219833144,-151.0,0.00021907,2]
[328353279,1717219833153,-151.0,0.00021907,2]
[328353281,1717219833163,-151.0,0.00021907,2]
[328353282,1717219833172,-151.0,0.00021907,2]
[328353285,1717219833182,-151.0,0.00021907,2]
[328353287,1717219833191,-151.0,0.00021907,2]
[328353288,1717219833201,-151.0,0.00021907,2]
[328353290,1717219833210,-187.019874,0.00021907,2]
[328353292,1717219833219,-187.019874,0.00021907,2]
[328353294,1717219833229,-151.0,0.00021907,2]
[328353296,1717219833239,-151.0,0.00021907,2]
[328353298,1717219833248,-151.0,0.00021908,2]
[328353300,1717219833258,-151.0,0.00021908,2]
[328353302,1717219833267,-151.0,0.00021908,2]
[328353304,1717219833276,-151.0,0.00021908,2]
[328353306,1717219833285,-151.0,0.00021908,2]
[328353308,1717219833296,-151.0,0.00021908,2]
[328353310,1717219833305,-151.0,0.00021908,2]
[328353312,1717219833314,-151.0,0.00021908,2]
[328353314,1717219833324,-268.212704,0.00021908,2]
[328353316,1717219833334,-268.212704,0.00021908,2]
[328353318,1717219833347,-268.212704,0.00021908,2]
[328353320,1717219833356,-268.212704,0.00021908,2]
[328353322,1717219833365,-268.212704,0.00021908,2]
[328353324,1717219833374,-268.212704,0.00021908,2]
[328353326,1717219833384,-268.212704,0.00021908,2]
[328353328,1717219833393,-268.212704,0.00021908,2]
[328353330,1717219833402,-308.003169,0.00021908,2]
[328353332,1717219833411,-308.003169,0.00021908,2]
[328353334,1717219833420,-151.0,0.00021908,2]
[328353336,1717219833429,-151.0,0.00021908,2]
[328353338,1717219833438,-293.460832,0.00021908,2]
[328353340,1717219833447,-630.00935,0.00021908,2]
[328353342,1717219833456,-630.00935,0.00021908,2]
[328353344,1717219833466,-268.212704,0.00021909,2]
[328353346,1717219833474,-268.212704,0.00021909,2]
[328353348,1717219833484,-151.0,0.0002191,2]
[328353350,1717219833493,-151.0,0.0002191,2]
[328353352,1717219833502,-152.785277,0.0002191,2]
[328353354,1717219833511,-151.0,0.0002191,2]
[328353356,1717219833520,-189.668744,0.0002191,2]
[328353358,1717219833529,-3000.0,0.00021912,2]
[328353360,1717219833539,-3000.0,0.00021912,2]
[328353362,1717219833548,-3000.0,0.00021912,2]
[328353364,1717219833557,-2630.4384894,0.00021912,2]
[328353366,1717219833567,-151.0,0.00021912,2]
[328353368,1717219833576,-630.00935,0.00021912,2]
[328353370,1717219833585,-630.00935,0.00021912,2]
[328353372,1717219833597,-187.019874,0.00021912,2]
[328353374,1717219833606,-187.019874,0.00021912,2]
[328353376,1717219833616,-151.0,0.00021912,2]
[328353378,1717219833626,-151.0,0.00021912,2]
[328353380,1717219833634,-151.0,0.00021913,2]
[328353382,1717219833644,-227.76473501,0.00021914,2]
[328353384,1717219833653,-1625.64563935,0.00021915,2]
[328353386,1717219833662,-1044.46793886,0.00021915,2]
[328353388,1717219833671,-215.88988925,0.00021915,2]
[328353390,1717219833680,-754.3147076,0.00021915,2]
[328353392,1717219833689,-285.79170285,0.00021915,2]
[328353394,1717219833699,-155.04404271,0.00021915,2]
[328353396,1717219833708,-188.20365757,0.00021915,2]
[328353398,1717219833718,-1283.35159826,0.00021915,2]
[328353400,1717219833727,-840.83858524,0.00021915,2]
[328353402,1717219833736,-155.23951567,0.00021915,2]
[328353404,1717219833746,-914.88729843,0.00021915,2]
[328353406,1717219833755,-1502.54211628,0.00021915,2]
[328353408,1717219833764,-396.01098963,0.00021915,2]
[328353410,1717219833773,-383.7444428,0.00021915,2]
[328353412,1717219833782,-1158.54228289,0.00021915,2]
[328353414,1717219833791,-3900.97146099,0.00021915,2]
[328353416,1717219833801,-207.8748653,0.00021915,2]
[328353418,1717219833811,-1821.30674736,0.00021915,2]
[328353420,1717219833820,-1863.99301262,0.00021915,2]
[328353422,1717219833831,-2413.3367203,0.00021915,2]
[328353424,1717219833845,-194.64215028,0.00021915,2]
[328353426,1717219833854,-156.53629912,0.00021915,2]
[328353428,1717219833863,-181.43174985,0.00021915,2]
[328353430,1717219833873,-189.86240271,0.00021915,2]
[328353432,1717219833882,-1314.63117139,0.00021915,2]
[328353434,1717219833891,-271.63362366,0.00021915,2]
[328353436,1717219833900,-228.44955525,0.00021915,2]
[328353438,1717219833909,-184.81525855,0.00021915,2]
[328353440,1717219833918,-166.34588227,0.00021915,2]
[328353442,1717219833927,-204.64250108,0.00021915,2]
[328353444,1717219833937,-155.30549014,0.00021915,4]
[328353446,1717219833946,-155.75712285,0.00021915,2]
[328353448,1717219833955,-157.62967689,0.00021915,2]
[328353450,1717219833965,-164.22936281,0.00021915,2]
[328353452,1717219833974,-155.73251408,0.00021915,2]
[328353454,1717219833983,-353.74112955,0.00021915,2]
[328353456,1717219833992,-457.61806044,0.00021915,2]
[328353458,1717219834002,-282.42876227,0.00021915,2]
[328353460,1717219834011,-155.47345569,0.00021915,2]
[328353462,1717219834020,-1077.13470475,0.00021915,2]
[328353464,1717219834029,-276.77978588,0.00021915,2]
[328353466,1717219834039,-625.36455707,0.00021915,2]
[328353468,1717219834048,-157.08178345,0.00021915,2]
[328353470,1717219834057,-155.42285518,0.00021915,2]
[328353472,1717219834067,-155.56601865,0.00021915,2]
[328353474,1717219834076,-227.75197363,0.00021915,2]
[328353476,1717219834085,-155.59169901,0.00021915,2]
[328353478,1717219834097,-382.77257976,0.00021915,2]
[328353479,1717219834107,-155.23958006,0.00021915,2]
[328353481,1717219834116,-155.31541399,0.00021915,2]
[328353484,1717219834126,-383.01899267,0.00021915,2]
[328353486,1717219834136,-173.55625095,0.00021915,2]
[328353488,1717219834146,-171.97942959,0.00021915,2]
[328353490,1717219834156,-168.87446727,0.00021915,2]
[328353492,1717219834165,-155.83164308,0.00021915,2]
[328353493,1717219834175,-159.16643289,0.00021915,2]
[328353494,1717219834184,-963.74848958,0.00021915,2]
[328353495,1717219834193,-202.47584067,0.00021915,2]
[328353496,1717219834201,-155.52833665,0.00021915,2]
[328353497,1717219834211,-693.15714744,0.00021915,2]
[328353498,1717219834220,-157.9823284,0.00021915,2]
[328353499,1717219834229,-166.23882808,0.00021915,2]
[328353500,1717219834238,-155.13489862,0.00021915,2]
[328353501,1717219834249,-236.10051196,0.00021915,2]
[328353502,1717219834258,-196.16705395,0.00021915,2]
[328353503,1717219834267,-155.165195,0.00021915,2]
[328353504,1717219834276,-151.0,0.00021915,2]
[328353505,1717219834285,-151.0,0.00021915,2]
[328353506,1717219834293,-151.0,0.00021915,2]
[328353508,1717219834302,-151.0,0.00021915,2]
[328353510,1717219834311,-268.212704,0.00021915,2]
[328353512,1717219834321,-268.212704,0.00021915,2]
[328353514,1717219834331,-268.212704,0.00021915,2]
[328353516,1717219834341,-268.212704,0.00021915,2]
[328353518,1717219834350,-268.212704,0.00021915,2]
[328353529,1717219834437,-268.212704,0.00021915,2]
[328353531,1717219834446,-268.212704,0.00021915,2]
[328353533,1717219834455,-268.212704,0.00021915,2]
[328353534,1717219834464,-308.003169,0.00021915,2]
[328353536,1717219834474,-308.003169,0.00021915,2]
[328353538,1717219834483,-308.003169,0.00021915,2]
[328353540,1717219834493,-308.003169,0.00021915,2]
[328353541,1717219834502,-308.003169,0.00021915,2]
[328353542,1717219834511,-308.003169,0.00021915,2]
[328353543,1717219834520,-308.003169,0.00021915,2]
[328353544,1717219834530,-308.003169,0.00021915,2]
[328353545,1717219834539,-151.0,0.00021915,2]
[328353546,1717219834548,-151.0,0.00021915,2]
[328353547,1717219834557,-151.0,0.00021915,2]
[328353548,1717219834566,-151.0,0.00021915,2]
[328353549,1717219834576,-151.0,0.00021915,2]
[328353550,1717219834585,-151.0,0.00021915,2]
[328353551,1717219834596,-151.0,0.00021915,2]
[328353552,1717219834605,-151.0,0.00021915,2]
[328353553,1717219834615,-151.0,0.00021915,2]
[328353554,1717219834624,-151.0,0.00021915,2]
[328353555,1717219834633,-630.00935,0.00021915,2]
[328353556,1717219834643,-630.00935,0.00021915,2]
[328353557,1717219834652,-630.00935,0.00021915,2]
[328353558,1717219834661,-630.00935,0.00021915,2]
[328353559,1717219834671,-187.019874,0.00021915,2]
[328353560,1717219834679,-187.019874,0.00021915,2]
[328353561,1717219834689,-187.019874,0.00021915,2]
[328353562,1717219834698,-187.019874,0.00021915,2]
[328353563,1717219834708,-187.019874,0.00021915,2]
[328353564,1717219834718,-187.019874,0.00021915,2]
[328353565,1717219834727,-151.0,0.00021915,2]
[328353566,1717219834737,-151.0,0.00021915,2]
[328353567,1717219834746,-151.0,0.00021915,2]
[328353568,1717219834756,-151.0,0.00021915,2]
[328353569,1717219834766,-151.0,0.00021915,2]
[328353570,1717219834775,-151.0,0.00021915,2]
[328353571,1717219834785,-3786.53154498,0.00021916,2]
[328353572,1717219834794,-133889.01984048,0.00021916,2]
[328353573,1717219834804,-1416.29957738,0.00021916,3]
[328353574,1717219834813,-151.0,0.00021916,2]
[328353575,1717219834823,-268.212704,0.00021916,2]
[328353576,1717219834833,-268.212702,0.00021916,2]
[328353577,1717219834844,-308.003169,0.00021916,2]
[328353578,1717219834854,-308.003169,0.00021916,2]
[328353579,1717219834863,-291.051908,0.00021916,2]
[328353580,1717219834872,-151.0,0.00021916,2]
[328353581,1717219834882,-151.0,0.00021916,2]
[328353582,1717219834891,-630.00935,0.00021916,2]
[328353583,1717219834901,-630.00935,0.00021916,2]
[328353584,1717219834910,-187.019874,0.00021916,2]
[328353585,1717219834923,-187.019872,0.00021916,2]
[328353586,1717219834933,-151.0,0.00021916,2]
[328353587,1717219834942,-892.15,0.00021917,2]
[328353588,1717219834952,-500.0,0.00021917,2]
[328353589,1717219834961,-500.0,0.00021917,2]
[328353590,1717219834970,-511.09367678,0.00021917,2]
[328353591,1717219834980,-500.0,0.00021917,2]
[328353592,1717219834989,-500.0,0.00021917,2]
[328353593,1717219834999,-500.0,0.00021917,2]
[328353594,1717219835008,-500.0,0.00021917,2]
[328353595,1717219835018,-500.0,0.00021917,2]
[328353596,1717219835027,-520.18380667,0.00021917,2]
[328353597,1717219835037,-1406.92,0.00021917,2]
[328353598,1717219835046,-500.0,0.00021917,2]
[328353599,1717219835056,-500.0,0.00021917,2]
[328353600,1717219835065,-511.71788184,0.00021917,2]
[328353601,1717219835075,-566.3785506,0.00021917,2]
[328353602,1717219835084,-500.0,0.00021917,2]
[328353603,1717219835096,-500.0,0.00021917,2]
[328353604,1717219835106,-308.16209979,0.00021917,2]
[328353605,1717219835115,-500.0,0.00021917,2]
[328353606,1717219835125,-500.0,0.00021917,2]
[328353607,1717219835134,-500.0,0.00021917,2]
[328353608,1717219835144,-500.0,0.00021917,2]
[328353609,1717219835153,-263.62089657,0.00021917,2]
[328353610,1717219835163,-500.0,0.00021917,2]
[328353611,1717219835172,-662.47,0.00021917,2]
[328353612,1717219835182,-1000.0,0.00021917,2]
[328353613,1717219835191,-500.0,0.00021917,2]
[328353614,1717219835200,-500.0,0.00021917,2]
[328353615,1717219835210,-500.0,0.00021917,2]
[328353616,1717219835219,-195.44114748,0.00021917,2]
[328353617,1717219835229,-254.58593375,0.00021917,2]
[328353618,1717219835238,-500.0,0.00021917,2]
[328353619,1717219835248,-500.0,0.00021917,2]
[328353620,1717219835258,-500.0,0.00021917,2]
[328353621,1717219835267,-500.0,0.00021917,2]
[328353622,1717219835276,-500.0,0.00021917,2]
[328353623,1717219835286,-517.8135449,0.00021917,2]
[328353624,1717219835295,-500.0,0.00021917,2]
[328353625,1717219835304,-514.00002164,0.00021917,2]
[328353626,1717219835314,-516.00812082,0.00021917,2]
[328353627,1717219835323,-595.58,0.00021917,2]
[328353628,1717219835332,-500.0,0.00021917,2]
[328353629,1717219835343,-500.0,0.00021917,2]
[328353630,1717219835353,-541.12,0.00021917,2]
[328353631,1717219835362,-406.04617397,0.00021917,2]
[328353632,1717219835371,-175.1211705,0.00021917,2]
[328353633,1717219835381,-500.0,0.00021917,2]
[328353634,1717219835390,-269.01978765,0.00021917,2]
[328353635,1717219835399,-500.0,0.00021917,2]
[328353636,1717219835409,-500.0,0.00021917,2]
[328353637,1717219835419,-500.0,0.00021917,2]
[328353638,1717219835428,-500.0,0.00021917,2]
[328353639,1717219835438,-626.41,0.00021917,2]
[328353640,1717219835447,-626.41,0.00021917,2]
[328353641,1717219835456,-500.0,0.00021917,2]
[328353642,1717219835465,-626.41,0.00021917,2]
[328353643,1717219835475,-626.41,0.00021917,2]
[328353644,1717219835484,-626.41,0.00021917,2]
[328353645,1717219835494,-626.41,0.00021917,2]
[328353646,1717219835504,-626.41,0.00021917,2]
[328353647,1717219835513,-626.41,0.00021917,2]
[328353648,1717219835522,-330.85,0.00021917,2]
[328353649,1717219835532,-626.41,0.00021917,2]
[328353650,1717219835542,-626.41,0.00021917,2]
[328353651,1717219835551,-626.41,0.00021917,2]
[328353652,1717219835560,-626.41,0.00021917,2]
[328353653,1717219835570,-626.41,0.00021917,2]
[328353654,1717219835580,-500.0,0.00021917,2]
[328353655,1717219835590,-626.41,0.00021917,2]
[328353656,1717219835599,-626.41,0.00021917,2]
[328353657,1717219835609,-626.41,0.00021917,2]
[328353658,1717219835619,-626.41,0.00021917,2]
[328353659,1717219835629,-626.41,0.00021917,2]
[328353660,1717219835638,-500.0,0.00021917,2]
[328353661,1717219835648,-500.0,0.00021917,2]
[328353662,1717219835657,-626.41,0.00021917,2]
[328353663,1717219835667,-626.41,0.00021917,2]
[328353664,1717219835677,-500.0,0.00021917,2]
[328353665,1717219835686,-626.41,0.00021917,2]
[328353666,1717219835696,-626.41,0.00021917,2]
[328353667,1717219835705,-2585.13,0.00021917,2]
[328353668,1717219835715,-626.41,0.00021917,2]
[328353669,1717219835724,-626.44001534,0.00021917,2]
[328353670,1717219835733,-428.93358602,0.00021917,2]
[328353671,1717219835818,-500.0,0.00021917,2]
[328353672,1717219835828,-513.02356953,0.00021917,2]
[328353673,1717219835838,-500.0,0.00021917,2]
[328353674,1717219835852,-500.0,0.00021917,2]
[328353675,1717219835861,-1712.32,0.00021917,2]
[328353676,1717219835871,-504.07641766,0.00021917,2]
[328353677,1717219835880,-500.0,0.00021917,2]
[328353678,1717219835890,-500.0,0.00021917,2]
[328353679,1717219835900,-500.0,0.00021917,2]
[328353680,1717219835910,-500.0,0.00021917,2]
[328353681,1717219835919,-500.0,0.00021917,2]
[328353682,1717219835929,-768.83,0.00021917,2]
[328353683,1717219835939,-529.08458517,0.00021917,2]
[328353684,1717219835948,-500.0,0.00021917,2]
[328353685,1717219835957,-500.0,0.00021917,2]
[328353686,1717219835966,-500.0,0.00021917,2]
[328353687,1717219835975,-500.0,0.00021917,2]
[328353688,1717219835984,-500.0,0.00021917,2]
[328353689,1717219835993,-671.59,0.00021917,2]
[328353690,1717219836002,-371.53660086,0.00021917,2]
[328353691,1717219836012,-512.415992,0.00021917,2]
[328353692,1717219836021,-779.78,0.00021917,2]
[328353693,1717219836030,-671.72,0.00021917,2]
[328353694,1717219836039,-723.38,0.00021917,2]
[328353695,1717219836049,-500.0,0.00021917,2]
[328353696,1717219836058,-615.87189912,0.00021917,2]
[328353697,1717219836068,-500.0,0.00021917,2]
[328353698,1717219836078,-190.01547117,0.00021917,2]
[328353699,1717219836087,-500.0,0.00021917,2]
[328353700,1717219836097,-500.0,0.00021917,2]
[328353701,1717219836106,-729.07,0.00021917,2]
[328353702,1717219836115,-500.0,0.00021917,2]
[328353703,1717219836126,-500.0,0.00021917,2]
[328353704,1717219836135,-500.0,0.00021917,2]
[328353705,1717219836145,-500.0,0.00021917,2]
[328353706,1717219836154,-500.0,0.00021917,2]
[328353707,1717219836163,-522.89261398,0.00021917,2]
[328353708,1717219836173,-500.0,0.00021917,2]
[328353709,1717219836182,-500.0,0.00021917,2]
[328353710,1717219836192,-500.0,0.00021917,2]
[328353711,1717219836201,-500.0,0.00021917,2]
[328353712,1717219836210,-500.0,0.00021917,2]
[328353713,1717219836220,-500.0,0.00021917,2]
[328353714,1717219836229,-519.34491668,0.00021917,2]
[328353715,1717219836241,-500.0,0.00021917,2]
[328353716,1717219836251,-500.0,0.00021917,2]
[328353717,1717219836260,-500.0,0.00021917,2]
[328353718,1717219836270,-500.0,0.00021917,2]
[328353719,1717219836279,-500.0,0.00021917,2]
[328353720,1717219836289,-500.0,0.00021917,2]
[328353721,1717219836298,-500.0,0.00021917,2]
[328353722,1717219836308,-500.0,0.00021917,2]
[328353723,1717219836317,-500.0,0.00021917,2]
[328353724,1717219836326,-500.0,0.00021917,2]
[328353725,1717219836336,-500.0,0.00021917,2]
[328353726,1717219836347,-500.0,0.00021917,2]
[328353727,1717219836357,-165.57003609,0.00021917,2]
[328353728,1717219836366,-504.58364465,0.00021917,2]
[328353729,1717219836376,-390.34867605,0.00021917,2]
[328353730,1717219836386,-500.0,0.00021917,2]
[328353731,1717219836395,-500.0,0.00021917,2]
[328353732,1717219836404,-500.0,0.00021917,2]
[328353733,1717219836413,-500.0,0.00021917,2]
[328353734,1717219836422,-500.0,0.00021917,2]
[328353735,1717219836431,-500.0,0.00021917,2]
[328353736,1717219836440,-151.0,0.00021917,2]
[328353737,1717219836449,-500.0,0.00021917,2]
[328353738,1717219836458,-500.0,0.00021917,2]
[328353739,1717219836467,-500.0,0.00021917,2]
[328353740,1717219836476,-500.0,0.00021917,2]
[328353741,1717219836486,-500.0,0.00021917,2]
[328353742,1717219836495,-500.0,0.00021917,2]
[328353743,1717219836504,-500.0,0.00021917,2]
[328353744,1717219836513,-500.0,0.00021917,2]
[328353745,1717219836522,-548.84904465,0.00021917,2]
[328353746,1717219836531,-510.85168516,0.00021917,2]
[328353747,1717219836541,-500.0,0.00021917,2]
[328353748,1717219836550,-500.0,0.00021917,2]
[328353749,1717219836559,-500.0,0.00021917,2]
[328353750,1717219836569,-500.0,0.00021917,2]
[328353751,1717219836578,-500.0,0.00021917,2]
[328353752,1717219836588,-500.0,0.00021917,2]
[328353753,1717219836598,-500.0,0.00021917,2]
[328353754,1717219836607,-500.0,0.00021917,2]
[328353755,1717219836617,-500.0,0.00021917,2]
[328353756,1717219836627,-500.0,0.00021917,2]
[328353757,1717219836636,-500.0,0.00021917,2]
[328353758,1717219836646,-213.76362374,0.00021917,2]
[328353759,1717219836655,-520.49,0.00021917,2]
[328353760,1717219836665,-500.0,0.00021917,2]
[328353761,1717219836674,-500.0,0.00021917,2]
[328353762,1717219836683,-500.0,0.00021917,2]
[328353763,1717219836693,-500.0,0.00021917,2]
[328353764,1717219836702,-500.0,0.00021917,2]
[328353765,1717219836712,-500.0,0.00021917,2]
[328353766,1717219836721,-945.5,0.00021917,2]
[328353767,1717219836730,-500.0,0.00021917,2]
[328353768,1717219836740,-500.0,0.00021917,2]
[328353769,1717219836749,-500.0,0.00021917,2]
[328353770,1717219836759,-500.0,0.00021917,2]
[328353771,1717219836768,-500.0,0.00021917,2]
[328353772,1717219836778,-531.78871537,0.00021917,2]
[328353773,1717219836788,-500.0,0.00021917,2]
[328353774,1717219836798,-500.0,0.00021917,2]
[328353775,1717219836807,-528.54447792,0.00021917,2]
[328353776,1717219836817,-500.0,0.00021917,2]
[328353777,1717219836827,-3255.39,0.00021917,2]
[328353778,1717219836836,-500.0,0.00021917,2]
[328353779,1717219836850,-500.0,0.00021917,2]
[328353780,1717219836860,-510.39354666,0.00021917,2]
[328353781,1717219836870,-500.0,0.00021917,2]
[328353782,1717219836880,-500.0,0.00021917,2]
[328353783,1717219836889,-500.0,0.00021917,2]
[328353784,1717219836898,-500.0,0.00021917,2]
[328353785,1717219836908,-162.79372071,0.00021917,2]
[328353786,1717219836919,-500.0,0.00021917,2]
[328353787,1717219836929,-500.0,0.00021917,2]
[328353788,1717219836938,-500.0,0.00021917,2]
[328353789,1717219836948,-500.0,0.00021917,2]
[328353790,1717219836958,-234.71542995,0.00021917,2]
[328353791,1717219836967,-500.0,0.00021917,2]
[328353792,1717219836977,-500.0,0.00021917,2]
[328353793,1717219836986,-896.99,0.00021917,2]
[328353794,1717219836996,-500.0,0.00021917,2]
[328353795,1717219837005,-500.0,0.00021917,2]
[328353796,1717219837014,-505.05,0.00021917,2]
[328353797,1717219837024,-500.0,0.00021917,2]
[328353798,1717219837105,-500.0,0.00021917,2]
[328353799,1717219837114,-500.0,0.00021917,2]
[328353800,1717219837124,-500.0,0.00021917,2]
[328353801,1717219837133,-500.0,0.00021917,2]
[328353802,1717219837142,-500.0,0.00021917,2]
[328353803,1717219837151,-500.0,0.00021917,2]
[328353804,1717219837160,-500.0,0.00021917,2]
[328353805,1717219837170,-500.0,0.00021917,2]
[328353806,1717219837179,-500.0,0.00021917,2]
[328353807,1717219837188,-500.0,0.00021917,2]
[328353808,1717219837197,-500.0,0.00021917,2]
[328353809,1717219837207,-500.0,0.00021917,2]
[328353810,1717219837216,-500.0,0.00021917,2]
[328353811,1717219837225,-515.54650461,0.00021917,2]
[328353812,1717219837235,-503.02131348,0.00021917,2]
[328353813,1717219837245,-500.0,0.00021917,2]